[Event "January 9 Late 2024"]
[Site "https://www.chess.com"]
[Date "2024.01.09"]
[Round "1"]
[White "Erzhanov, Arman"]
[Black "Nakamura, Hikaru"]
[Result "0-1"]
[Board "1"]
[TimeControl "180+1"]
[WhiteFideId "4138821"]
[BlackFideId "2016192"]
[WhiteElo "2551"]
[BlackElo "3204"]
[WhiteTeam "KAZ"]
[BlackTeam "USA"]
[WhiteClock "0:00:00"]
[BlackClock "0:01:01"]

1. e4 {[%clk 0:02:55]}  g6 {[%clk 0:03:00]} 2. d4 {[%clk 0:02:53]}  Bg7 {[%clk 0:03:00]} 3. Nc3 {[%clk 0:02:53]}  a6 {[%clk 0:03:00]} 4. a4 {[%clk 0:02:50]}  d6 {[%clk 0:03:00]} 5. Nge2 {[%clk 0:02:49]}  Nd7 {[%clk 0:02:59]} 6. h3 {[%clk 0:02:49]}  c5 {[%clk 0:02:59]} 7. Be3 {[%clk 0:02:48]}  cxd4 {[%clk 0:03:00]} 8. Nxd4 {[%clk 0:02:47]}  b6 {[%clk 0:02:58]} 9. Bc4 {[%clk 0:02:45]}  Bb7 {[%clk 0:02:57]} 10. Bd5 {[%clk 0:02:43]}  Qc7 {[%clk 0:02:57]} 11. O-O {[%clk 0:02:39]}  Ngf6 {[%clk 0:02:57]} 12. Bxb7 {[%clk 0:02:36]}  Qxb7 {[%clk 0:02:58]} 13. f3 {[%clk 0:02:35]}  Rc8 {[%clk 0:02:57]} 14. Qd2 {[%clk 0:02:32]}  Ne5 {[%clk 0:02:54]} 15. b3 {[%clk 0:02:28]}  O-O {[%clk 0:02:54]} 16. Nde2 {[%clk 0:02:25]}  Rfd8 {[%clk 0:02:52]} 17. Rac1 {[%clk 0:02:03]}  b5 {[%clk 0:02:52]} 18. axb5 {[%clk 0:02:00]}  axb5 {[%clk 0:02:52]} 19. Nd5 {[%clk 0:01:55]}  e6 {[%clk 0:02:47]} 20. Nxf6+ {[%clk 0:01:52]}  Bxf6 {[%clk 0:02:47]} 21. Bg5 {[%clk 0:01:50]}  Bxg5 {[%clk 0:02:45]} 22. Qxg5 {[%clk 0:01:51]}  Qb6+ {[%clk 0:02:37]} 23. Kh2 {[%clk 0:01:49]}  Rc5 {[%clk 0:02:38]} 24. Qf6 {[%clk 0:01:42]}  Rdc8 {[%clk 0:02:38]} 25. c3 {[%clk 0:01:30]}  Qc7 {[%clk 0:02:35]} 26. Rfd1 {[%clk 0:01:26]}  d5 {[%clk 0:02:35]} 27. Kh1 {[%clk 0:01:11]}  dxe4 {[%clk 0:02:35]} 28. fxe4 {[%clk 0:01:11]}  Nd7 {[%clk 0:02:36]} 29. Qe7 {[%clk 0:01:07]}  Ne5 {[%clk 0:02:36]} 30. Qxc7 {[%clk 0:01:02]}  R5xc7 {[%clk 0:02:34]} 31. Ra1 {[%clk 0:01:00]}  Nd7 {[%clk 0:02:34]} 32. Ra5 {[%clk 0:00:57]}  Nc5 {[%clk 0:02:34]} 33. Rxb5 {[%clk 0:00:52]}  Nxe4 {[%clk 0:02:34]} 34. Rc1 {[%clk 0:00:39]}  Nxc3 {[%clk 0:02:34]} 35. Nxc3 {[%clk 0:00:39]}  Rxc3 {[%clk 0:02:35]} 36. Rxc3 {[%clk 0:00:40]}  Rxc3 {[%clk 0:02:36]} 37. b4 {[%clk 0:00:35]}  Rb3 {[%clk 0:02:36]} 38. Rb7 {[%clk 0:00:34]}  g5 {[%clk 0:02:32]} 39. Kg1 {[%clk 0:00:34]}  Rb2 {[%clk 0:02:32]} 40. b5 {[%clk 0:00:34]}  h5 {[%clk 0:02:31]} 41. b6 {[%clk 0:00:33]}  Kg7 {[%clk 0:02:32]} 42. Rb8 {[%clk 0:00:27]}  h4 {[%clk 0:02:32]} 43. Kf1 {[%clk 0:00:27]}  Kf6 {[%clk 0:02:31]} 44. Kg1 {[%clk 0:00:26]}  Kf5 {[%clk 0:02:30]} 45. Kh2 {[%clk 0:00:17]}  Kf4 {[%clk 0:02:28]} 46. Kg1 {[%clk 0:00:15]}  e5 {[%clk 0:02:27]} 47. Kh2 {[%clk 0:00:14]}  e4 {[%clk 0:02:27]} 48. b7 {[%clk 0:00:11]}  f5 {[%clk 0:02:26]} 49. Kg1 {[%clk 0:00:03]}  Kg3 {[%clk 0:02:26]} 50. Kf1 {[%clk 0:00:03]}  Rb1+ {[%clk 0:01:17]} 51. Ke2 {[%clk 0:00:03]}  Kxg2 {[%clk 0:01:18]} 52. Rg8 {[%clk 0:00:03]}  Rxb7 {[%clk 0:01:17]} 53. Rxg5+ {[%clk 0:00:03]}  Kxh3 {[%clk 0:01:18]} 54. Rxf5 {[%clk 0:00:03]}  Kg4 {[%clk 0:01:17]} 55. Rf8 {[%clk 0:00:03]}  Rg7 {[%clk 0:01:03]} 56. Ke3 {[%clk 0:00:00]}  h3 {[%clk 0:01:01]} 0-1

[Event "January 9 Late 2024"]
[Site "https://www.chess.com"]
[Date "2024.01.10"]
[Round "1"]
[White "Naroditsky, Daniel"]
[Black "Stremavicius, Titas"]
[Result "1-0"]
[Board "4"]
[TimeControl "180+1"]
[WhiteFideId "2026961"]
[BlackFideId "12804444"]
[WhiteElo "3153"]
[BlackElo "2550"]
[WhiteTeam "USA"]
[BlackTeam "LTU"]
[WhiteClock "0:02:41"]
[BlackClock "0:00:00"]

1. e4 {[%clk 0:03:00]}  c5 {[%clk 0:01:55]} 2. c3 {[%clk 0:03:00]}  e6 {[%clk 0:01:54]} 3. d4 {[%clk 0:03:00]}  d5 {[%clk 0:01:53]} 4. exd5 {[%clk 0:03:00]}  exd5 {[%clk 0:01:54]} 5. Nf3 {[%clk 0:03:01]}  Nc6 {[%clk 0:01:53]} 6. Bb5 {[%clk 0:03:00]}  Bd6 {[%clk 0:01:53]} 7. O-O {[%clk 0:03:00]}  Nf6 {[%clk 0:00:50]} 8. Bg5 {[%clk 0:02:59]}  O-O {[%clk 0:00:42]} 9. dxc5 {[%clk 0:02:59]}  Bxc5 {[%clk 0:00:43]} 10. Nbd2 {[%clk 0:02:59]}  a6 {[%clk 0:00:38]} 11. Bd3 {[%clk 0:02:59]}  h6 {[%clk 0:00:37]} 12. Bh4 {[%clk 0:02:59]}  Be7 {[%clk 0:00:36]} 13. Re1 {[%clk 0:02:58]}  Bg4 {[%clk 0:00:35]} 14. h3 {[%clk 0:02:59]}  Bh5 {[%clk 0:00:35]} 15. Qb3 {[%clk 0:02:53]}  Qd7 {[%clk 0:00:34]} 16. Ne5 {[%clk 0:02:46]}  Nxe5 {[%clk 0:00:34]} 17. Rxe5 {[%clk 0:02:47]}  Rfd8 {[%clk 0:00:00]} 18. Bxf6 {[%clk 0:02:41]} 1-0

[Event "January 9 Late 2024"]
[Site "https://www.chess.com"]
[Date "2024.01.09"]
[Round "1"]
[White "Grycel, Kamil"]
[Black "Sevian, Samuel"]
[Result "0-1"]
[Board "5"]
[TimeControl "180+1"]
[WhiteFideId "1115499"]
[BlackFideId "2040506"]
[WhiteElo "2549"]
[BlackElo "3152"]
[WhiteTeam "POL"]
[BlackTeam "USA"]
[WhiteClock "0:00:00"]
[BlackClock "0:02:06"]

1. d4 {[%clk 0:03:00]}  Nf6 {[%clk 0:03:00]} 2. Nf3 {[%clk 0:03:00]}  d5 {[%clk 0:03:00]} 3. Bf4 {[%clk 0:03:00]}  Bg4 {[%clk 0:03:00]} 4. e3 {[%clk 0:02:59]}  e6 {[%clk 0:03:00]} 5. Nbd2 {[%clk 0:02:59]}  Bd6 {[%clk 0:03:00]} 6. Bg3 {[%clk 0:02:58]}  Nbd7 {[%clk 0:03:00]} 7. c3 {[%clk 0:02:55]}  O-O {[%clk 0:03:00]} 8. Qb3 {[%clk 0:02:52]}  Qe7 {[%clk 0:02:57]} 9. Ne5 {[%clk 0:02:50]}  Bf5 {[%clk 0:02:55]} 10. f4 {[%clk 0:02:45]}  c5 {[%clk 0:02:52]} 11. Bh4 {[%clk 0:02:39]}  c4 {[%clk 0:02:50]} 12. Qd1 {[%clk 0:02:37]}  Qe8 {[%clk 0:02:48]} 13. Be2 {[%clk 0:02:34]}  Ne4 {[%clk 0:02:48]} 14. Nxe4 {[%clk 0:02:32]}  Bxe4 {[%clk 0:02:49]} 15. O-O {[%clk 0:02:27]}  f6 {[%clk 0:02:47]} 16. Nxd7 {[%clk 0:02:26]}  Qxd7 {[%clk 0:02:48]} 17. Bg4 {[%clk 0:02:03]}  b5 {[%clk 0:02:46]} 18. Be1 {[%clk 0:01:40]}  a5 {[%clk 0:02:45]} 19. Bf3 {[%clk 0:01:40]}  Bd3 {[%clk 0:02:45]} 20. Be2 {[%clk 0:01:40]}  Bg6 {[%clk 0:02:46]} 21. Bh5 {[%clk 0:01:39]}  Bf5 {[%clk 0:02:43]} 22. Bg4 {[%clk 0:01:39]}  Rfe8 {[%clk 0:02:43]} 23. Qf3 {[%clk 0:01:35]}  Be4 {[%clk 0:02:42]} 24. Qh3 {[%clk 0:01:35]}  b4 {[%clk 0:02:39]} 25. f5 {[%clk 0:01:22]}  e5 {[%clk 0:02:39]} 26. Bd2 {[%clk 0:01:17]}  Rab8 {[%clk 0:02:39]} 27. Bh5 {[%clk 0:01:13]}  Re7 {[%clk 0:02:37]} 28. Bf3 {[%clk 0:01:12]}  exd4 {[%clk 0:02:37]} 29. Bxe4 {[%clk 0:01:07]}  Rxe4 {[%clk 0:02:36]} 30. exd4 {[%clk 0:01:07]}  bxc3 {[%clk 0:02:35]} 31. Bxc3 {[%clk 0:01:07]}  a4 {[%clk 0:02:34]} 32. a3 {[%clk 0:01:04]}  Rbe8 {[%clk 0:02:34]} 33. Rae1 {[%clk 0:01:02]}  Qb5 {[%clk 0:02:30]} 34. Rxe4 {[%clk 0:00:52]}  Rxe4 {[%clk 0:02:31]} 35. Qf3 {[%clk 0:00:52]}  Qe8 {[%clk 0:02:27]} 36. Qd1 {[%clk 0:00:47]}  Bf4 {[%clk 0:02:25]} 37. g3 {[%clk 0:00:00]}  Bg5 {[%clk 0:02:06]} 0-1

[Event "January 9 Late 2024"]
[Site "https://www.chess.com"]
[Date "2024.01.09"]
[Round "1"]
[White "Dubov, Daniil"]
[Black "Ghevondyan, Arman"]
[Result "1-0"]
[Board "6"]
[TimeControl "180+1"]
[WhiteFideId "24126055"]
[BlackFideId "13312073"]
[WhiteElo "3115"]
[BlackElo "2548"]
[WhiteTeam "RUS"]
[BlackTeam "ARM"]
[WhiteClock "0:01:14"]
[BlackClock "0:00:10"]

1. d4 {[%clk 0:03:00]}  Nf6 {[%clk 0:02:58]} 2. Bf4 {[%clk 0:02:59]}  g6 {[%clk 0:02:56]} 3. Nd2 {[%clk 0:02:56]}  d5 {[%clk 0:02:56]} 4. e3 {[%clk 0:02:55]}  Bg7 {[%clk 0:02:57]} 5. Ngf3 {[%clk 0:02:54]}  O-O {[%clk 0:02:57]} 6. h3 {[%clk 0:02:54]}  b6 {[%clk 0:02:57]} 7. c3 {[%clk 0:02:53]}  Bb7 {[%clk 0:02:58]} 8. Be2 {[%clk 0:02:52]}  c5 {[%clk 0:02:58]} 9. O-O {[%clk 0:02:52]}  Nc6 {[%clk 0:02:58]} 10. Re1 {[%clk 0:02:50]}  Nd7 {[%clk 0:02:58]} 11. b4 {[%clk 0:02:45]}  cxb4 {[%clk 0:02:49]} 12. cxb4 {[%clk 0:02:45]}  Nxb4 {[%clk 0:02:49]} 13. Qa4 {[%clk 0:02:43]}  Nc6 {[%clk 0:02:47]} 14. Bb5 {[%clk 0:02:36]}  a6 {[%clk 0:02:02]} 15. Bxc6 {[%clk 0:02:36]}  b5 {[%clk 0:02:02]} 16. Bxb5 {[%clk 0:02:35]}  axb5 {[%clk 0:02:02]} 17. Qxb5 {[%clk 0:02:35]}  Ba6 {[%clk 0:01:54]} 18. Qb4 {[%clk 0:02:35]}  e6 {[%clk 0:01:50]} 19. Rec1 {[%clk 0:02:30]}  Re8 {[%clk 0:01:45]} 20. Bc7 {[%clk 0:02:19]}  Qe7 {[%clk 0:01:42]} 21. Bd6 {[%clk 0:02:19]}  Qd8 {[%clk 0:01:42]} 22. Rc6 {[%clk 0:02:16]}  Bd3 {[%clk 0:01:27]} 23. a4 {[%clk 0:02:09]}  Nb8 {[%clk 0:01:21]} 24. Rb6 {[%clk 0:01:55]}  Na6 {[%clk 0:01:19]} 25. Qb2 {[%clk 0:01:55]}  Ra7 {[%clk 0:01:04]} 26. Ne5 {[%clk 0:01:48]}  Bxe5 {[%clk 0:01:03]} 27. dxe5 {[%clk 0:01:48]}  Qc8 {[%clk 0:00:57]} 28. Rc1 {[%clk 0:01:45]}  Qa8 {[%clk 0:00:56]} 29. Rcc6 {[%clk 0:01:31]}  Rd8 {[%clk 0:00:43]} 30. Kh2 {[%clk 0:01:29]}  Kg7 {[%clk 0:00:35]} 31. Qd4 {[%clk 0:01:28]}  Be2 {[%clk 0:00:33]} 32. Qh4 {[%clk 0:01:27]}  Rad7 {[%clk 0:00:30]} 33. Be7 {[%clk 0:01:23]}  Rxe7 {[%clk 0:00:21]} 34. Qxe7 {[%clk 0:01:23]}  Re8 {[%clk 0:00:22]} 35. Rxa6 {[%clk 0:01:14]}  Qxa6 {[%clk 0:00:17]} 36. Qf6+ {[%clk 0:01:14]}  Kf8 {[%clk 0:00:14]} 37. Rxa6 {[%clk 0:01:15]}  Bxa6 {[%clk 0:00:10]} 38. Nf3 {[%clk 0:01:14]} 1-0

[Event "January 9 Late 2024"]
[Site "https://www.chess.com"]
[Date "2024.01.09"]
[Round "1"]
[White "Yurasov, Matfey"]
[Black "Nepomniachtchi, Ian"]
[Result "0-1"]
[Board "7"]
[TimeControl "180+1"]
[WhiteFideId "55617603"]
[BlackFideId "4168119"]
[WhiteElo "2548"]
[BlackElo "3114"]
[WhiteTeam "FID"]
[BlackTeam "RUS"]
[WhiteClock "0:00:05"]
[BlackClock "0:01:10"]

1. e4 {[%clk 0:03:00]}  c5 {[%clk 0:02:57]} 2. Nf3 {[%clk 0:03:00]}  d6 {[%clk 0:02:57]} 3. Bb5+ {[%clk 0:02:59]}  Nd7 {[%clk 0:02:57]} 4. O-O {[%clk 0:02:59]}  a6 {[%clk 0:02:57]} 5. Be2 {[%clk 0:02:57]}  Ngf6 {[%clk 0:02:57]} 6. d3 {[%clk 0:02:56]}  g6 {[%clk 0:02:56]} 7. Nfd2 {[%clk 0:02:55]}  Bg7 {[%clk 0:02:57]} 8. f4 {[%clk 0:02:54]}  O-O {[%clk 0:02:57]} 9. Bf3 {[%clk 0:02:52]}  Nb8 {[%clk 0:02:53]} 10. c3 {[%clk 0:02:49]}  Nc6 {[%clk 0:02:53]} 11. Nc4 {[%clk 0:02:48]}  Rb8 {[%clk 0:02:50]} 12. Ne3 {[%clk 0:02:44]}  Bd7 {[%clk 0:02:39]} 13. Na3 {[%clk 0:02:34]}  b5 {[%clk 0:02:39]} 14. Nac2 {[%clk 0:02:34]}  b4 {[%clk 0:02:39]} 15. d4 {[%clk 0:02:28]}  bxc3 {[%clk 0:02:39]} 16. bxc3 {[%clk 0:02:28]}  cxd4 {[%clk 0:02:24]} 17. cxd4 {[%clk 0:02:28]}  Qb6 {[%clk 0:02:24]} 18. Kh1 {[%clk 0:02:20]}  Rfc8 {[%clk 0:02:24]} 19. Ba3 {[%clk 0:02:14]}  Ne8 {[%clk 0:02:04]} 20. e5 {[%clk 0:02:07]}  Qd8 {[%clk 0:02:04]} 21. Qd2 {[%clk 0:01:59]}  Nc7 {[%clk 0:01:53]} 22. Rad1 {[%clk 0:01:52]}  Nb5 {[%clk 0:01:53]} 23. Bb2 {[%clk 0:01:51]}  Qa5 {[%clk 0:01:48]} 24. Qxa5 {[%clk 0:01:46]}  Nxa5 {[%clk 0:01:49]} 25. Nb4 {[%clk 0:01:39]}  Nc7 {[%clk 0:01:34]} 26. Nd3 {[%clk 0:01:30]}  Bb5 {[%clk 0:01:33]} 27. Ba1 {[%clk 0:01:28]}  Nc4 {[%clk 0:01:28]} 28. Nxc4 {[%clk 0:01:23]}  Bxc4 {[%clk 0:01:29]} 29. Rd2 {[%clk 0:01:23]}  Nd5 {[%clk 0:01:29]} 30. g3 {[%clk 0:01:18]}  Nb4 {[%clk 0:01:26]} 31. Be2 {[%clk 0:01:12]}  Nxa2 {[%clk 0:01:26]} 32. Re1 {[%clk 0:01:05]}  a5 {[%clk 0:01:26]} 33. Bf3 {[%clk 0:00:50]}  Nb4 {[%clk 0:01:23]} 34. Nxb4 {[%clk 0:00:43]}  axb4 {[%clk 0:01:23]} 35. Bb2 {[%clk 0:00:30]}  d5 {[%clk 0:01:23]} 36. Rc1 {[%clk 0:00:28]}  e6 {[%clk 0:01:23]} 37. Kg2 {[%clk 0:00:23]}  Bf8 {[%clk 0:01:24]} 38. g4 {[%clk 0:00:19]}  Ra8 {[%clk 0:01:23]} 39. h4 {[%clk 0:00:16]}  b3 {[%clk 0:01:24]} 40. Rf2 {[%clk 0:00:12]}  Ra2 {[%clk 0:01:23]} 41. f5 {[%clk 0:00:12]}  Rxb2 {[%clk 0:01:22]} 42. Rxb2 {[%clk 0:00:12]}  Ba3 {[%clk 0:01:23]} 43. Rcb1 {[%clk 0:00:12]}  Bxb2 {[%clk 0:01:23]} 44. Rxb2 {[%clk 0:00:13]}  Ra8 {[%clk 0:01:24]} 45. Rf2 {[%clk 0:00:08]}  Ra2 {[%clk 0:01:24]} 46. Bd1 {[%clk 0:00:08]}  Rxf2+ {[%clk 0:01:22]} 47. Kxf2 {[%clk 0:00:08]}  b2 {[%clk 0:01:16]} 48. Bc2 {[%clk 0:00:09]}  gxf5 {[%clk 0:01:10]} 49. gxf5 {[%clk 0:00:08]}  Ba2 {[%clk 0:01:10]} 50. fxe6 {[%clk 0:00:05]}  fxe6 {[%clk 0:01:10]} 0-1

[Event "January 9 Late 2024"]
[Site "https://www.chess.com"]
[Date "2024.01.09"]
[Round "1"]
[White "Bortnyk, Olexandr"]
[Black "Srdanovic, Jovana"]
[Result "1-0"]
[Board "8"]
[TimeControl "180+1"]
[WhiteFideId "14120828"]
[BlackFideId "954810"]
[WhiteElo "3109"]
[BlackElo "2548"]
[WhiteTeam "UKR"]
[BlackTeam "SRB"]
[WhiteClock "0:00:58"]
[BlackClock "0:00:18"]

1. e4 {[%clk 0:02:50]}  c5 {[%clk 0:02:59]} 2. c3 {[%clk 0:02:47]}  Nf6 {[%clk 0:02:59]} 3. e5 {[%clk 0:02:47]}  Nd5 {[%clk 0:03:00]} 4. d4 {[%clk 0:02:48]}  cxd4 {[%clk 0:02:59]} 5. Nf3 {[%clk 0:02:48]}  e6 {[%clk 0:02:59]} 6. cxd4 {[%clk 0:02:49]}  d6 {[%clk 0:02:59]} 7. Bc4 {[%clk 0:02:49]}  Be7 {[%clk 0:02:57]} 8. O-O {[%clk 0:02:48]}  O-O {[%clk 0:02:56]} 9. Qe2 {[%clk 0:02:47]}  b6 {[%clk 0:02:54]} 10. Nbd2 {[%clk 0:02:44]}  Bb7 {[%clk 0:02:53]} 11. Ne4 {[%clk 0:02:45]}  dxe5 {[%clk 0:02:50]} 12. dxe5 {[%clk 0:02:46]}  Nd7 {[%clk 0:02:45]} 13. Bg5 {[%clk 0:02:40]}  Rc8 {[%clk 0:02:29]} 14. Bxe7 {[%clk 0:02:25]}  Qxe7 {[%clk 0:02:30]} 15. Nd6 {[%clk 0:02:25]}  Rc7 {[%clk 0:02:21]} 16. Nxb7 {[%clk 0:02:25]}  Rxb7 {[%clk 0:02:22]} 17. Bxd5 {[%clk 0:02:25]}  exd5 {[%clk 0:02:23]} 18. Rfd1 {[%clk 0:02:26]}  Nc5 {[%clk 0:02:08]} 19. Rxd5 {[%clk 0:02:24]}  Rd8 {[%clk 0:02:05]} 20. Rad1 {[%clk 0:02:24]}  Rbd7 {[%clk 0:02:05]} 21. Rxd7 {[%clk 0:02:19]}  Rxd7 {[%clk 0:02:05]} 22. Rxd7 {[%clk 0:02:17]}  Qxd7 {[%clk 0:02:03]} 23. b4 {[%clk 0:02:17]}  Ne6 {[%clk 0:02:02]} 24. Qd2 {[%clk 0:02:14]}  Qa4 {[%clk 0:02:00]} 25. Ng5 {[%clk 0:02:06]}  h6 {[%clk 0:01:43]} 26. Nxe6 {[%clk 0:02:06]}  fxe6 {[%clk 0:01:44]} 27. h3 {[%clk 0:01:54]}  Kf7 {[%clk 0:01:32]} 28. Kh2 {[%clk 0:01:54]}  a5 {[%clk 0:01:29]} 29. bxa5 {[%clk 0:01:52]}  bxa5 {[%clk 0:01:30]} 30. Qe2 {[%clk 0:01:43]}  Qa3 {[%clk 0:01:21]} 31. Qf3+ {[%clk 0:01:14]}  Qxf3 {[%clk 0:01:20]} 32. gxf3 {[%clk 0:01:15]}  Kg6 {[%clk 0:01:20]} 33. Kg3 {[%clk 0:01:14]}  Kf5 {[%clk 0:01:19]} 34. f4 {[%clk 0:01:14]}  g5 {[%clk 0:01:16]} 35. fxg5 {[%clk 0:01:14]}  hxg5 {[%clk 0:01:17]} 36. a4 {[%clk 0:01:04]}  Kxe5 {[%clk 0:00:52]} 37. Kg4 {[%clk 0:01:05]}  Kf6 {[%clk 0:00:37]} 38. f4 {[%clk 0:01:01]}  gxf4 {[%clk 0:00:19]} 39. Kxf4 {[%clk 0:01:02]}  e5+ {[%clk 0:00:19]} 40. Ke4 {[%clk 0:00:53]}  Kg5 {[%clk 0:00:17]} 41. Kxe5 {[%clk 0:00:53]}  Kh4 {[%clk 0:00:17]} 42. Kd5 {[%clk 0:00:54]}  Kxh3 {[%clk 0:00:18]} 43. Kc5 {[%clk 0:00:55]}  Kg4 {[%clk 0:00:19]} 44. Kb5 {[%clk 0:00:55]}  Kf5 {[%clk 0:00:19]} 45. Kxa5 {[%clk 0:00:56]}  Ke6 {[%clk 0:00:20]} 46. Kb6 {[%clk 0:00:57]}  Kd7 {[%clk 0:00:18]} 47. Kb7 {[%clk 0:00:58]} 1-0

[Event "January 9 Late 2024"]
[Site "https://www.chess.com"]
[Date "2024.01.09"]
[Round "1"]
[White "Andreikin, Dmitry"]
[Black "Aliakbarov, Anar"]
[Result "1-0"]
[Board "10"]
[TimeControl "180+1"]
[WhiteFideId "4158814"]
[BlackFideId "13401858"]
[WhiteElo "3092"]
[BlackElo "2547"]
[WhiteTeam "FID"]
[BlackTeam "TUR"]
[WhiteClock "0:00:47"]
[BlackClock "0:00:00"]

1. e4 {[%clk 0:03:00]}  e5 {[%clk 0:02:58]} 2. Nf3 {[%clk 0:02:59]}  Nc6 {[%clk 0:02:59]} 3. Bb5 {[%clk 0:02:58]}  a6 {[%clk 0:02:59]} 4. Ba4 {[%clk 0:02:57]}  Nf6 {[%clk 0:02:59]} 5. O-O {[%clk 0:02:55]}  Nxe4 {[%clk 0:03:00]} 6. d4 {[%clk 0:02:54]}  Be7 {[%clk 0:03:00]} 7. Re1 {[%clk 0:02:41]}  b5 {[%clk 0:02:58]} 8. Rxe4 {[%clk 0:02:35]}  d5 {[%clk 0:02:59]} 9. Nxe5 {[%clk 0:02:31]}  Nxe5 {[%clk 0:02:59]} 10. Rxe5 {[%clk 0:02:31]}  bxa4 {[%clk 0:03:00]} 11. Nc3 {[%clk 0:02:31]}  O-O {[%clk 0:02:50]} 12. Rxd5 {[%clk 0:02:16]}  Bd6 {[%clk 0:02:50]} 13. Bf4 {[%clk 0:02:16]}  Be6 {[%clk 0:01:50]} 14. Bxd6 {[%clk 0:01:58]}  cxd6 {[%clk 0:01:50]} 15. Rh5 {[%clk 0:01:58]}  a3 {[%clk 0:01:33]} 16. bxa3 {[%clk 0:01:50]}  Qc8 {[%clk 0:01:33]} 17. Qd3 {[%clk 0:01:42]}  g6 {[%clk 0:01:01]} 18. Rh4 {[%clk 0:01:42]}  Bf5 {[%clk 0:00:56]} 19. Qd2 {[%clk 0:01:41]}  h5 {[%clk 0:00:21]} 20. Nd5 {[%clk 0:01:20]}  Qd8 {[%clk 0:00:17]} 21. Rf4 {[%clk 0:01:13]}  Be6 {[%clk 0:00:15]} 22. Nf6+ {[%clk 0:01:04]}  Kg7 {[%clk 0:00:15]} 23. Rf3 {[%clk 0:01:04]}  Rh8 {[%clk 0:00:10]} 24. d5 {[%clk 0:01:03]}  Bg4 {[%clk 0:00:05]} 25. Qd4 {[%clk 0:00:51]}  Bxf3 {[%clk 0:00:04]} 26. Ne8+ {[%clk 0:00:51]}  Kh6 {[%clk 0:00:01]} 27. Qxh8+ {[%clk 0:00:50]}  Kg5 {[%clk 0:00:02]} 28. Re1 {[%clk 0:00:47]}  Bxd5 {[%clk 0:00:01]} 29. h4+ {[%clk 0:00:46]}  Kxh4 {[%clk 0:00:01]} 30. Qd4+ {[%clk 0:00:46]}  Kg5 {[%clk 0:00:01]} 31. Qxd5+ {[%clk 0:00:47]}  Kh6 {[%clk 0:00:00]} 32. Qxf7 {[%clk 0:00:47]} 1-0

[Event "January 9 Late 2024"]
[Site "https://www.chess.com"]
[Date "2024.01.09"]
[Round "1"]
[White "Pasti, Aron"]
[Black "Tabatabaei, M. Amin"]
[Result "0-1"]
[Board "11"]
[TimeControl "180+1"]
[WhiteFideId "785857"]
[BlackFideId "12521213"]
[WhiteElo "2547"]
[BlackElo "3087"]
[WhiteTeam "HUN"]
[BlackTeam "IRI"]
[WhiteClock "0:01:33"]
[BlackClock "0:01:24"]

1. e4 {[%clk 0:03:00]}  c6 {[%clk 0:03:00]} 2. d4 {[%clk 0:03:00]}  d5 {[%clk 0:03:01]} 3. e5 {[%clk 0:03:00]}  Bf5 {[%clk 0:03:00]} 4. h4 {[%clk 0:03:00]}  h5 {[%clk 0:02:57]} 5. Bd3 {[%clk 0:03:00]}  Bxd3 {[%clk 0:02:57]} 6. Qxd3 {[%clk 0:03:01]}  e6 {[%clk 0:02:57]} 7. Ne2 {[%clk 0:03:00]}  Qa5+ {[%clk 0:02:54]} 8. Bd2 {[%clk 0:02:59]}  Qa6 {[%clk 0:02:54]} 9. Qe3 {[%clk 0:02:58]}  Nh6 {[%clk 0:02:53]} 10. Nbc3 {[%clk 0:02:52]}  Nf5 {[%clk 0:02:53]} 11. Qf4 {[%clk 0:02:52]}  c5 {[%clk 0:02:49]} 12. O-O-O {[%clk 0:02:49]}  g6 {[%clk 0:02:40]} 13. f3 {[%clk 0:02:42]}  Nc6 {[%clk 0:02:21]} 14. dxc5 {[%clk 0:02:37]}  d4 {[%clk 0:02:05]} 15. Ne4 {[%clk 0:02:02]}  Qxa2 {[%clk 0:02:04]} 16. c3 {[%clk 0:01:51]}  d3 {[%clk 0:01:56]} 17. Nf6+ {[%clk 0:01:49]}  Ke7 {[%clk 0:01:54]} 18. Be3 {[%clk 0:01:39]}  Bh6 {[%clk 0:01:29]} 19. Qxh6 {[%clk 0:01:33]}  Rxh6 {[%clk 0:01:24]} 0-1

[Event "January 9 Late 2024"]
[Site "https://www.chess.com"]
[Date "2024.01.09"]
[Round "1"]
[White "Makarian, Rudik"]
[Black "Serban, Cristian-Stefan"]
[Result "1-0"]
[Board "12"]
[TimeControl "180+1"]
[WhiteFideId "44105681"]
[BlackFideId "1241443"]
[WhiteElo "3084"]
[BlackElo "2547"]
[WhiteTeam "FID"]
[BlackTeam "ROU"]
[WhiteClock "0:00:56"]
[BlackClock "0:00:03"]

1. d4 {[%clk 0:03:00]}  Nf6 {[%clk 0:03:00]} 2. c4 {[%clk 0:03:01]}  e6 {[%clk 0:03:00]} 3. Nf3 {[%clk 0:03:01]}  d5 {[%clk 0:03:00]} 4. g3 {[%clk 0:03:01]}  dxc4 {[%clk 0:03:00]} 5. Bg2 {[%clk 0:03:02]}  c5 {[%clk 0:03:00]} 6. O-O {[%clk 0:03:01]}  Nc6 {[%clk 0:03:01]} 7. Qa4 {[%clk 0:03:02]}  Bd7 {[%clk 0:03:01]} 8. Qxc4 {[%clk 0:03:02]}  b5 {[%clk 0:03:01]} 9. Qd3 {[%clk 0:03:02]}  c4 {[%clk 0:02:55]} 10. Qc2 {[%clk 0:03:02]}  Rc8 {[%clk 0:02:51]} 11. e4 {[%clk 0:03:02]}  Be7 {[%clk 0:02:47]} 12. Rd1 {[%clk 0:03:00]}  O-O {[%clk 0:02:48]} 13. Qe2 {[%clk 0:03:00]}  Re8 {[%clk 0:02:42]} 14. Ne5 {[%clk 0:03:00]}  Qc7 {[%clk 0:01:32]} 15. Bf4 {[%clk 0:02:52]}  Qb7 {[%clk 0:01:33]} 16. a4 {[%clk 0:02:29]}  a6 {[%clk 0:01:32]} 17. axb5 {[%clk 0:02:28]}  axb5 {[%clk 0:01:33]} 18. Be3 {[%clk 0:01:58]}  Red8 {[%clk 0:01:20]} 19. Nxd7 {[%clk 0:01:54]}  Rxd7 {[%clk 0:01:18]} 20. d5 {[%clk 0:01:50]}  Rcd8 {[%clk 0:00:42]} 21. Nc3 {[%clk 0:01:46]}  Nb4 {[%clk 0:00:42]} 22. d6 {[%clk 0:01:29]}  Bf8 {[%clk 0:00:16]} 23. e5 {[%clk 0:01:29]}  Nfd5 {[%clk 0:00:16]} 24. Nxd5 {[%clk 0:01:29]}  Nxd5 {[%clk 0:00:15]} 25. Qd2 {[%clk 0:01:27]}  f6 {[%clk 0:00:13]} 26. f4 {[%clk 0:01:26]}  fxe5 {[%clk 0:00:06]} 27. fxe5 {[%clk 0:01:27]}  Re8 {[%clk 0:00:04]} 28. Ra7 {[%clk 0:01:23]}  Qc8 {[%clk 0:00:04]} 29. Rxd7 {[%clk 0:01:18]}  Qxd7 {[%clk 0:00:04]} 30. Bxd5 {[%clk 0:01:19]}  exd5 {[%clk 0:00:05]} 31. Qxd5+ {[%clk 0:01:20]}  Kh8 {[%clk 0:00:05]} 32. Rf1 {[%clk 0:01:19]}  g6 {[%clk 0:00:04]} 33. Rxf8+ {[%clk 0:00:57]}  Rxf8 {[%clk 0:00:05]} 34. e6 {[%clk 0:00:58]}  Qe8 {[%clk 0:00:02]} 35. Bd4+ {[%clk 0:00:57]}  Kg8 {[%clk 0:00:02]} 36. e7+ {[%clk 0:00:57]}  Rf7 {[%clk 0:00:03]} 37. d7 {[%clk 0:00:56]}  Qxe7 {[%clk 0:00:03]} 1-0